Cogmind - Beta 11 @@@ ROGUE MODE // 2022.04.15 @ 13:36:45 Player: Kiks Result: Self-destructed Performance ------------- Evolutions (2) 1000 Regions Visited (4) 800 Robots Destroyed (48) 240 Value Destroyed (1447) 1447 Prototype IDs (1) 20 Alien Tech Used (0) 0 Bonus (138) 138 TOTAL SCORE: 3645 Bonus ------- High Alert Combat Kills 138 Cogmind --------- Core Integrity 178/550 Matter 215/300 Energy 39/100 System Corruption 0% Temperature Cool (2) Movement Flying (34) Location -8/Materials Parts ------- > --- POWER (1) -------- (None) > --- PROPULSION (4) --- Flight Unit Cesium-ion Thruster > --- UTILITY (3) ------ Small Storage Unit > --- WEAPON (3) ------- Mining Laser > --- INVENTORY (8) ---- Heavy Laser Peak State ------------ > --- POWER ------------ Nuclear Core > --- PROPULSION ------- Cesium-ion Thruster Cesium-ion Thruster Cesium-ion Thruster Cesium-ion Thruster > --- UTILITY ---------- Small Storage Unit > --- WEAPON ----------- Heavy Laser Heavy Laser > --- INVENTORY -------- Heavy Laser Mining Laser [Rating: 24] Favorites ----------- Power Light Nuclear Core Engine Ion Engine Power Core Light Nuclear Core Propulsion Aluminum Leg Treads Light Treads Leg Aluminum Leg Flight Unit Cesium-ion Thruster Utility Large Storage Unit Device Improved Heat Sink Storage Large Storage Unit Protection Improved Light Armor Plating Weapon Assault Cannon Energy Gun Small Laser Energy Cannon Beam Cannon Ballistic Gun Light Assault Rifle Ballistic Cannon Assault Cannon Launcher Rocket Launcher Special Weapon Mining Laser Build | -11 -10 -10 -9 -8 ------- Run | Scr Mat Min Mat Mat Slots Evolved 4 | . . . 2 2 Power . | . . . . . Propulsion 2 | . . . 2 . Utility 1 | . . . . 1 Weapon 1 | . . . . 1 Parts Attached 66 | 6 12 10 16 22 Power 8 | 1 1 2 1 3 Engine 4 | 1 1 1 1 . Core 4 | . . 1 . 3 Reactor . | . . . . . Propulsion 28 | 2 3 4 9 10 Treads 9 | . 3 . 5 1 Leg 13 | 2 . 4 4 3 Wheel . | . . . . . Hover . | . . . . . Flight 6 | . . . . 6 Utility 10 | 1 2 2 1 4 Device 4 | . 1 1 . 2 Storage 4 | 1 1 . 1 1 Processor . | . . . . . Hackware . | . . . . . Protection 2 | . . 1 . 1 Artifact . | . . . . . Weapon 20 | 2 6 2 5 5 Energy Gun 8 | . 1 1 2 4 Energy Cannon 6 | . 5 . 1 . Ballistic Gun 3 | 2 . . 1 . Ballistic Cannon 1 | . . 1 . . Launcher 1 | . . . 1 . Special Weapon 1 | . . . . 1 Impact Weapon . | . . . . . Slashing Weapon . | . . . . . Piercing Weapon . | . . . . . Special Melee Weapon . | . . . . . Unidentified Prototypes 1 | . . . 1 . Parts Lost 29 | . . 4 3 22 Power 5 | . . . 1 4 Propulsion 15 | . . 2 1 12 Utility 4 | . . 1 . 3 Weapon 5 | . . 1 1 3 Highest Loss Streak 17 | . . 4 3 17 To Critical Strikes 1 | . . . . 1 Average Slot Usage (%) 87 | . 94 89 97 65 Engine 6 | . 14 5 2 4 Core 4 | . . 7 7 1 Treads 14 | . 24 7 10 20 Leg 15 | . 3 18 32 3 Flight 1 | . . . . 5 Device 7 | . 9 12 1 5 Storage 8 | . 14 3 9 7 Protection 5 | . . 7 11 3 Energy Gun 7 | . . 8 10 7 Energy Cannon 5 | . 7 7 1 5 Ballistic Gun 4 | . 18 . 1 . Ballistic Cannon 4 | . . 7 7 . Naked Turns 84 | . . 47 . 37 Heaviest Build 38 | 13 32 32 38 34 Greatest Support 80 | 20 40 40 80 80 Greatest Overweight (x) 2 | . 1 . . 2 Average Overweight (x) . | . . . . . Largest Inventory Capacity 15 | 8 15 15 15 15 Average Capacity 11 | 6 14 7 13 12 Most Carried 13 | 4 13 12 9 6 Average Carried 5 | 1 8 5 5 3 Final Capacity 15 | 8 15 5 15 8 Final Carried 12 | 4 12 5 4 1 Class Distribution -------------------- 56% | Mutant 43% | Scavenger-Mutant Dominant Class ---------------- Mutant | -10/Materials Mutant | -10/Mines Scavenger-Mutant | -9/Materials Scavenger-Mutant | -8/Materials Resources | -11 -10 -10 -9 -8 ----------- Run | Scr Mat Min Mat Mat Matter Collected 1096 | 252 216 137 396 95 Remotely . | . . . . . Salvage Created 1747 | . 357 52 607 731 Parts 91 | . 16 4 41 30 Haulers Intercepted 1 | . . . 1 . Recyclers Shooed . | . . . . . Parts Field Recycled . | . . . . . Retrieved Matter . | . . . . . Parts Self-Destructed . | . . . . . Prevented . | . . . . . Kills | -11 -10 -10 -9 -8 ------- Run | Scr Mat Min Mat Mat Combat Hostiles Destroyed 44 | . 6 2 21 15 Guns 17 | . 6 . 4 7 Cannons 20 | . . 2 11 7 AOE 6 | . . . 6 . Classes Destroyed 8 | . 2 1 5 . Worker 1 | . . . 1 . Hauler 1 | . . . 1 . Recycler 2 | . 1 . . 1 Operator 1 | . . . 1 . Swarmer 13 | . . . 10 3 Grunt 23 | . 6 1 6 10 Sentry 7 | . . . 5 2 Assembled 1 | . . 1 . . Best Kill Streak 10 | . 4 1 10 10 Combat Bots Only 10 | . 4 1 10 9 Max Kills in Single Turn 3 | . 1 1 3 2 Gunslinging . | . . . . . Exploded 3 | . . . 3 . Melee . | . . . . . Uniques/NPCs Destroyed . | . . . . . Combat | -11 -10 -10 -9 -8 -------- Run | Scr Mat Min Mat Mat Damage Taken 4234 | . 318 492 1053 2371 Core 637 | . 42 94 129 372 Absorbed by Shields . | . . . . . Core Remaining (%) 70 | 100 . 45 67 . Volleys Fired 147 | . 22 17 48 60 Largest 2 | . 2 2 2 2 Hottest 138 | . 40 120 119 138 Shots Fired 274 | . 44 34 81 115 Gun 162 | . 44 11 39 68 Cannon 107 | . . 23 38 46 Launcher 4 | . . . 4 . Special 1 | . . . . 1 Kinetic 93 | . 44 7 42 . Thermal 177 | . . 27 35 115 Explosive 4 | . . . 4 . Electromagnetic . | . . . . . Robot Hit Streak 14 | . 11 3 8 14 Robot Miss Streak 7 | . 2 4 7 4 Penetration Max . | . . . . . Secondary Targets 1 | . . . . 1 Max Gunslinging Chain 1 | . . . . 1 Shots Hit Robots 167 | . 30 15 45 77 Core Hits 72 | . 12 4 28 28 Critical Kills 1 | . 1 . . . Critical Parts Destroyed . | . . . . . Critical Strikes 5 | . 1 . 3 1 Burn 4 | . . . 3 1 Destroy 1 | . 1 . . . Melee Attacks . | . . . . . Impact . | . . . . . Slashing . | . . . . . Piercing . | . . . . . Sneak Attacks . | . . . . . Combat Hostiles . | . . . . . Follow-up Attacks . | . . . . . Damage Inflicted 3226 | . 321 269 1250 1386 Guns 1419 | . 321 47 330 721 Cannons 1426 | . . 209 556 661 Explosions 364 | . . . 364 . Melee . | . . . . . Ramming 17 | . . 13 . 4 Kinetic 990 | . 321 71 598 . Thermal 1855 | . . 185 288 1382 Explosive 364 | . . . 364 . Electromagnetic . | . . . . . Impact . | . . . . . Slashing . | . . . . . Piercing . | . . . . . Highest Corruption 7 | . . 2 7 . Average Corruption 3 | . . 2 7 . Corruption Purged . | . . . . . Corruption Blocked . | . . . . . Effects 8 | . . 5 3 . Matter Fused 1 | . . 1 . . Heat Flow Errors 3 | . . 1 2 . Energy Discharges 1 | . . 1 . . Data Loss (major) 1 | . . . 1 . Misfires 2 | . . 2 . . Overload Shots . | . . . . . Overflow Damage 33 | . . 15 18 . Projectiles 15 | . . 15 . . Explosions 18 | . . . 18 . Melee . | . . . . . Knockbacks 2 | . . 1 1 . Impact . | . . . . . Kinetic 2 | . . 1 1 . Secondary . | . . . . . Self-Inflicted Damage 92 | . . 4 88 . Shots 3 | . . . 3 . Rammed 4 | . . 2 . 2 Targets Rammed 5 | . . 3 . 2 Kicked 1 | . . 1 . . Crushed . | . . . . . Highest Temperature 386 | . 25 183 386 376 Average Temperature 121 | . 10 54 129 132 Received Heat Transfer 1506 | . 195 75 120 1116 Effects 6 | . . . 4 2 Shutdowns 1 | . . . 1 . Energy Bleed 2 | . . . 1 1 Interference 2 | . . . 2 . Matter Decay 1 | . . . . 1 Siege Activations . | . . . . . Robots Corrupted . | . . . . . Combat Hostiles . | . . . . . Parts Fried . | . . . . . Impact Corruptions . | . . . . . Robots Melted 1 | . . . . 1 Combat Hostiles 1 | . . . . 1 Parts Melted 6 | . . . 2 4 Heat Transferred 4210 | . . 396 817 2997 Parts Sabotaged . | . . . . . Parts Stolen . | . . . . . Parts Stripped . | . . . . . Power Chain Reactions . | . . . . . Missiles Intercepted . | . . . . . Alert | -11 -10 -10 -9 -8 ------- Run | Scr Mat Min Mat Mat Peak Influence 726 | . 190 51 726 537 Initial 221 | . . . 19 221 Average 180 | . 87 12 325 418 Maximum Alert Level 3 | . . . 3 2 Low Security (%) 65 | 100 100 100 37 . Level 1 10 | . . . 26 24 Level 2 21 | . . . 28 75 Level 3 1 | . . . 8 . Level 4 . | . . . . . Level 5 . | . . . . . High Security . | . . . . . Max Security . | . . . . . Squads Dispatched 10 | . . . 4 6 Investigation . | . . . . . Extermination . | . . . . . Reinforcement 7 | . . . 4 3 Assault . | . . . . . Garrison 3 | . . . . 3 Intercept . | . . . . . Searches Triggered . | . . . . . Construction Impeded . | . . . . . Haulers Reinforced . | . . . . . Active Scanning Responses . | . . . . . Cargo Convoy Interrupts . | . . . . . Stealth | -11 -10 -10 -9 -8 --------- Run | Scr Mat Min Mat Mat Distress Signals 5 | . 1 1 1 2 Communications Jammed . | . . . . . Distress Signals . | . . . . . Times Spotted 98 | . 9 27 31 31 Peak Tracking Total 15 | . 3 15 12 10 Tactical Retreats 10 | . 1 4 1 4 Traps | -11 -10 -10 -9 -8 ------- Run | Scr Mat Min Mat Mat Traps Triggered 3 | . 2 1 . . Indirectly . | . . . . . Trap Hack Attempts . | . . . . . Triggered . | . . . . . Disarmed . | . . . . . Reprogrammed . | . . . . . Reused . | . . . . . Traps Extracted . | . . . . . Installed . | . . . . . Triggered . | . . . . . Machines | -11 -10 -10 -9 -8 ---------- Run | Scr Mat Min Mat Mat Machines Disabled 2 | . . . 1 1 Max in Single Turn 1 | . . . 1 1 Machines Sabotaged . | . . . . . Garrisons Compromised . | . . . . . Overloaded Fab Kills . | . . . . . Hacking | -11 -10 -10 -9 -8 --------- Run | Scr Mat Min Mat Mat Machines Accessed 4 | . 1 2 1 . Terminals 3 | . 1 1 1 . Fabricators . | . . . . . Repair Stations . | . . . . . Recycling Units . | . . . . . Scanalyzers . | . . . . . Garrison Access . | . . . . . Total Hacks 8 | . 4 3 1 . Successful 3 | . 1 2 . . Failed 5 | . 3 1 1 . Catastrophic 1 | . . . 1 . Database Lockouts . | . . . . . Manual 7 | . 4 2 1 . Terminals 7 | . 4 2 1 . Fabricators . | . . . . . Repair Stations . | . . . . . Recycling Units . | . . . . . Scanalyzers . | . . . . . Garrison Access . | . . . . . Terminal Hacks 2 | . . 2 . . Open Door 1 | . . 1 . . Alert Level 1 | . . 1 . . Fabricator Hacks . | . . . . . Repair Station Hacks . | . . . . . Recycling Unit Hacks . | . . . . . Scanalyzer . | . . . . . Garrison Access Hacks . | . . . . . Unauthorized Hacks 1 | . 1 . . . Terminals 1 | . 1 . . . Botnet 1 | . 1 . . . Fabricators . | . . . . . Repair Stations . | . . . . . Recycling Units . | . . . . . Scanalyzers . | . . . . . Garrison Access . | . . . . . Data Cores Recovered . | . . . . . Used . | . . . . . Hacking Detections 3 | . 1 1 1 . Full Trace Events . | . . . . . Feedback Events . | . . . . . Feedback Blocked . | . . . . . Robot Schematics Acquired . | . . . . . Robots Built . | . . . . . Authchips . | . . . . . Time . | . . . . . Total Robot Build Rating . | . . . . . Part Schematics Acquired . | . . . . . Parts Built . | . . . . . Authchips . | . . . . . Time . | . . . . . Total Part Build Rating . | . . . . . Parts Repaired . | . . . . . Time . | . . . . . Parts Recycled . | . . . . . Recycled Matter . | . . . . . Retrieved Matter . | . . . . . Retrieved Components . | . . . . . Parts Scanalyzed . | . . . . . Part Schematics Acquired . | . . . . . Parts Damaged . | . . . . . Bothacking | -11 -10 -10 -9 -8 ------------ Run | Scr Mat Min Mat Mat Used RIF Installer . | . . . . . Robots Hacked . | . . . . . Non-combat . | . . . . . Combat . | . . . . . Robot Hacks Applied . | . . . . . Relay Couplers Released . | . . . . . Fabnet Peak Effective % . | . . . . . Robots Rewired . | . . . . . Allies Hacked . | . . . . . Hacks Repelled . | . . . . . Allies | -11 -10 -10 -9 -8 -------- Run | Scr Mat Min Mat Mat Total Allies 1 | . . 1 . . Largest Group 1 | . . 1 . . Highest-Rated Group 31 | . . 31 . . Highest-Rated Ally 31 | . . 31 . . Total Orders . | . . . . . Ally Attacks 6 | . . 6 . . Total Damage 82 | . . 82 . . Kills 3 | . . 3 . . Allies Corrupted . | . . . . . Allies Melted . | . . . . . Intel | -11 -10 -10 -9 -8 ------- Run | Scr Mat Min Mat Mat Robot Analysis Total . | . . . . . Derelict Logs Recovered 2 | . . 2 . . Drone Launches . | . . . . . Drone Recoveries . | . . . . . Exploration | -11 -10 -10 -9 -8 ------------- Run | Scr Mat Min Mat Mat Turns Passed 2047 | 60 447 669 462 409 Spaces Moved 1227 | 42 210 494 215 266 Core 160 | 4 . 89 . 67 Treads 383 | . 176 99 62 46 Legs 543 | 38 34 306 153 12 Wheels . | . . . . . Hover . | . . . . . Flight 141 | . . . . 141 Fastest Speed 29 | 50 120 50 120 29 Average Speed 115 | 113 159 115 132 65 Slowest Speed 260 | 120 240 160 163 260 Overloaded Moves . | . . . . . Propulsion Burnouts . | . . . . . Robots Hopped 4 | . . . . 4 Cave-ins Triggered 1 | . . . 1 . Exploration Rate (%) 40 | 3 37 95 31 35 Regions Visited 4 Branch Regions 1 Pre-discovered Areas . | . . . . . Known Exits Taken 1 | . . . 1 . Unknown Exits Taken 3 | 1 1 1 . . Scrap Searched 1 | . . 1 . . Spaces Dug 1 | . . . . 1 Terrain Destroyed 43 | . . 2 40 1 Melee . | . . . . . Projectile 13 | . . 2 10 1 AOE 30 | . . . 30 . Terrain Rammed . | . . . . . Walls Destroyed . | . . . . . Machines Disabled . | . . . . . Actions | -11 -10 -10 -9 -8 --------- Run | Scr Mat Min Mat Mat Total 1576 | 51 278 560 312 375 Wait 88 | . 21 30 20 17 Move 1215 | 41 209 493 214 258 Hop 4 | . . . . 4 Pick Up 27 | 4 9 3 4 7 Fast Attach 37 | 6 9 3 7 12 Attach 21 | . . 5 6 10 Detach 1 | . . . 1 . Swap 8 | . 3 2 3 . Drop 23 | . 5 4 9 5 Fire 147 | . 22 17 48 60 Melee . | . . . . . Ram 2 | . . 2 . . Kick 1 | . . 1 . . Crush 2 | . . . . 2 Escape Stasis . | . . . . . Rewire . | . . . . . Trap . | . . . . . Miscellaneous . | . . . . . Route ------- -11/Scrapyard -10/Materials -10/Mines (discovered 2 exits: *Mat x2) -9/Materials (discovered 2 exits: *Mat / *Min) -8/Materials (discovered 1 exit: [*Fac]) History --------- Turn | Location | Event 3 | -11/Scrapyard | Discovered new exit (range 15) 61 | -11/Scrapyard | Entered Materials 311 | -10/Materials | Build established: Mutant 392 | -10/Materials | Discovered new exit (range 11) 508 | -10/Materials | Entered Mines 639 | -10/Mines | Assembled infested the area 644 | -10/Mines | Assisted by a Guerilla fighting off Assembled 722 | -10/Mines | Lost 4 parts (2n1u1w) 738 | -10/Mines | Received a Mining Laser from a helpful Derelict 809 | -10/Mines | Met a Derelict who couldn't figure out how to use a Trap Extractor 869 | -10/Mines | Received a Rocket Launcher from a helpful Derelict 902 | -10/Mines | Discovered new exit (range 6) 1018 | -10/Mines | Learned 8 Materials zone layouts 1126 | -10/Mines | Core integrity fell below 50% 1150 | -10/Mines | Discovered new exit (range 8) 1177 | -10/Mines | Entered Materials 1177 | -9/Materials | Evolved 2 slots: Propulsion x2 1178 | -9/Materials | Identified exit to Mines 1179 | -9/Materials | Identified exit to Materials 1450 | -9/Materials | Build established: Scavenger-Mutant 1505 | -9/Materials | Crushed by falling debris 1525 | -9/Materials | Destroyed 10 combat bots 1536 | -9/Materials | Lost 3 parts (1p1n1w) 1639 | -9/Materials | Entered another Materials area 1639 | -8/Materials | Evolved 2 slots: Utility x1, Weapon x1 1674 | -8/Materials | Garrison activated, responded to threat 1794 | -8/Materials | Destroyed 9 combat bots 1938 | -8/Materials | Core integrity fell below 50% 1961 | -8/Materials | Lost 17 parts (3p8n3u3w) 1963 | -8/Materials | Discovered new exit (range 16) 2048 | -8/Materials | Self-destructed Last Messages --------------- 01999_ W-25 Informer sends out distress signal. 02003_ Cesium-ion Thruster destroyed. 02003_ T-07 Excavator is excavating. 02006_ Acquired Nuclear Core. 02007_ T-07 Excavator is excavating. 02010_ S-10 Pest destroyed. 02010_ Switching to secondary target: S-10 Pest. 02011_ Cesium-ion Thruster destroyed. 02013_ Destroyed Flight Unit. 02021_ R-06 Scavenger collects Flight Unit. 02021_ T-07 Excavator is excavating. 02025_ R-06 Scavenger collects Lgt. Ion Engine. 02025_ T-07 Excavator is excavating. 02025_ Dropped Hvy. Laser. 02028_ R-06 Scavenger collects Flight Unit. 02028_ Nuclear Core destroyed. 02032_ R-06 Scavenger collects Lgt. Assault Rifle. 02036_ Cesium-ion Thruster destroyed. 02041_ Acquired Flight Unit. 02045_ S-10 Pest destroyed. Map ----- +----------------------------------------------------+ | ?????????????????????????????????????????????????? | | ?????????????????????????????????????????????????? | | ??????????????????????????????????#######????????? | | ??????????????????????????????????# ########## | | ??????????????????????????????????# | | ??????????????????????????????????# | | ??????????????????????????????????# | | ??????????????????????????????????# ########## | | ??????????????????????????????????## ##???????# | | ???????????????????????????????????# #????????# | | ???????????????????????????????????# #????????# | | ???????????????????????????????????# #????????# | | ???????????????????????????????????# #??""" ??# | | ???????????????????????????????????# #??""""??# | | ???????????????????????????????##### #?"""""??## | | ???????????????????????????????#!! #?""""" #? | | ???????????????????????????????#!! # """ #? | | ???????????????????????????????#// # +? | | ???????????????????????????????#// + #? | | ?????????????###???????????????#[ #########?? | | ????????????? #???######?????# #?????????? | | ????????????? #???# #?????##### #?????????? | | ???????????? " #???# #??######## #?????????? | | ??????????# """ #???# #??# ] !# #?????????? | | ??????????# "" #???#s= ##?# ] # #?????????? | | ??????????# """ #???#*%[ @#?# ] + #?????????? | | ??????????# "" #???#sl""##?# # #?????##### | | ??????????# """ #####g T"#??# # #?????# | | ??????????# """ # #g ""#??# # #?????# | | ??????????# """ # + ########### #?????# | | ????####### " # ###### % # #?????# | | #???? ## ## ##????# """ # #?????# | | ???? ####/#### #?????# "Y [ + #?????# | | T?##### ## ##?? ## """ # ####### | | # # ! ## """ # < + | | # ^ ^ + ## """ # #####+## | | ! + *! #????#! """ ### #???# #? | | # "T" [ #????# #?# #???# #? | | #### """ [ ##+#####+#######?# #???# #? | | # ! % ######## ##### ## | | # | | # ################################### | | ################?????????????????????????????????? | | ?????????????????????????????????????????????????? | | | | | | | | | | | | | +----------------------------------------------------+ Best States ------------- Heat Dissipation 45 Energy Generation 14 Energy Capacity 250 Matter Stores 300 Matter Capacity 300 Sight Range 16 Terrain Scan Density 10 Armor Coverage 150 Evasion (%) 63 Recoil Reduction 4 Item Schematics ----------------- None Robot Schematics ------------------ None Fabricated ------------ Nothing Alien Tech Used ----------------- None Achievements -------------- None Challenges ------------ None Game ------ Seed BackupPoweredStabilizer Manual? 0 Play Time 00:24:31 Cumulative 94.7 hours Start 2022.04.15 @ 13:16:52 End 2022.04.15 @ 13:36:45 Sessions 1 Manual Loads 0 Difficulty Rogue Special Mode None Game No. 53 Rogue 14 Adventurer 5 Explorer 34 Win Type - Total 18 Types 10/0/3/4/1/0/0/0/0 Lore% 68 Gallery% 64 Achievement% 70 Wizard Run 0 Options --------- ASCII 0 Keyboard 0 Movement Mouse Keybinds 0 Fullscreen 1 Font 12/Terminus Map View 83x54 Tactical HUD 1 Map Filters NONE Filters NONE Steam 1 RUN: 9ed1a28b-593f-43c9-a3ce-6fd6f9791bd1